[Event "*** Titled Tuesday Blitz"]
[Site "Chess.com"]
[Date "2020.04.14"]
[Round "2"]
[White "DanielDardha2005"]
[Black "rpragchess"]
[Result "1/2-1/2"]
[WhiteElo "2557"]
[BlackElo "2775"]
[TimeControl "180+1"]
[EndTime "10:18:36 PDT"]
[Termination "Game drawn by stalemate"]

1. Nf3 {[%clk 0:02:59.9]} 1... Nf6 {[%clk 0:02:59.7]} 2. c4 {[%clk 0:02:59.6]}
2... b6 {[%clk 0:02:57.9]} 3. g3 {[%clk 0:02:58.1]} 3... Bb7 {[%clk 0:02:58.8]}
4. Bg2 {[%clk 0:02:57.9]} 4... c5 {[%clk 0:02:59]} 5. O-O {[%clk 0:02:52.2]}
5... g6 {[%clk 0:02:59]} 6. Nc3 {[%clk 0:02:49.4]} 6... Bg7 {[%clk 0:02:59.1]}
7. d4 {[%clk 0:02:50]} 7... cxd4 {[%clk 0:02:55.4]} 8. Nxd4 {[%clk 0:02:47.7]}
8... Bxg2 {[%clk 0:02:56.3]} 9. Kxg2 {[%clk 0:02:48.4]} 9... O-O {[%clk
0:02:48.2]} 10. e4 {[%clk 0:02:46.8]} 10... d6 {[%clk 0:02:46.5]} 11. b3 {[%clk
0:02:42.8]} 11... Qc8 {[%clk 0:02:45.5]} 12. f3 {[%clk 0:02:40]} 12... Nc6
{[%clk 0:02:37.4]} 13. Be3 {[%clk 0:02:39.8]} 13... Qb7 {[%clk 0:02:35.5]} 14.
Rc1 {[%clk 0:02:38.4]} 14... Rac8 {[%clk 0:02:34.8]} 15. Qd2 {[%clk 0:02:37.2]}
15... Rfe8 {[%clk 0:02:35]} 16. Nxc6 {[%clk 0:02:35.1]} 16... Rxc6 {[%clk
0:02:34.2]} 17. Nd5 {[%clk 0:02:34.9]} 17... Nd7 {[%clk 0:02:31]} 18. Bg5 {[%clk
0:02:33.1]} 18... Nc5 {[%clk 0:02:25.3]} 19. Bh6 {[%clk 0:02:32.3]} 19... Bh8
{[%clk 0:02:02.3]} 20. h4 {[%clk 0:02:26.3]} 20... e6 {[%clk 0:01:43.1]} 21. Nc3
{[%clk 0:02:22.3]} 21... a6 {[%clk 0:01:40.5]} 22. h5 {[%clk 0:01:58.8]} 22...
b5 {[%clk 0:01:35.5]} 23. cxb5 {[%clk 0:01:58.7]} 23... axb5 {[%clk 0:01:35.8]}
24. hxg6 {[%clk 0:01:58.1]} 24... fxg6 {[%clk 0:01:19.5]} 25. Bf4 {[%clk
0:01:51.9]} 25... Rec8 {[%clk 0:01:10.1]} 26. Ne2 {[%clk 0:01:47.8]} 26... Be5
{[%clk 0:00:55.6]} 27. Bxe5 {[%clk 0:01:18.2]} 27... dxe5 {[%clk 0:00:56.5]} 28.
Rfd1 {[%clk 0:01:18.3]} 28... Kg7 {[%clk 0:00:27.5]} 29. Rh1 {[%clk 0:01:12]}
29... h5 {[%clk 0:00:26.1]} 30. g4 {[%clk 0:01:09.7]} 30... Qd7 {[%clk
0:00:16.8]} 31. Qg5 {[%clk 0:01:03.2]} 31... Qd8 {[%clk 0:00:10.8]} 32. Qxe5+
{[%clk 0:00:44.5]} 32... Qf6 {[%clk 0:00:10.5]} 33. Qxf6+ {[%clk 0:00:37.3]}
33... Kxf6 {[%clk 0:00:11.4]} 34. gxh5 {[%clk 0:00:37.5]} 34... gxh5 {[%clk
0:00:11.9]} 35. Rxh5 {[%clk 0:00:37.5]} 35... Nd3 {[%clk 0:00:12.5]} 36. Rxc6
{[%clk 0:00:36.7]} 36... Rxc6 {[%clk 0:00:13.4]} 37. Nd4 {[%clk 0:00:31.1]}
37... Rc1 {[%clk 0:00:09.4]} 38. Rxb5 {[%clk 0:00:24.5]} 38... e5 {[%clk
0:00:08.6]} 39. Rb6+ {[%clk 0:00:21.1]} 39... Kf7 {[%clk 0:00:07.7]} 40. Nf5
{[%clk 0:00:20.1]} 40... Rc2+ {[%clk 0:00:07.7]} 41. Kg3 {[%clk 0:00:20.2]}
41... Rxa2 {[%clk 0:00:08.3]} 42. b4 {[%clk 0:00:18.3]} 42... Ra3 {[%clk
0:00:08.3]} 43. Rb7+ {[%clk 0:00:15.9]} 43... Ke6 {[%clk 0:00:08]} 44. b5 {[%clk
0:00:15.7]} 44... Nc5 {[%clk 0:00:07.6]} 45. Re7+ {[%clk 0:00:13.1]} 45... Kf6
{[%clk 0:00:07.6]} 46. Kg4 {[%clk 0:00:11.7]} 46... Rb3 {[%clk 0:00:07.6]} 47.
Rc7 {[%clk 0:00:08.3]} 47... Rxb5 {[%clk 0:00:07.5]} 48. Rc6+ {[%clk 0:00:08.6]}
48... Ne6 {[%clk 0:00:08]} 49. f4 {[%clk 0:00:05]} 49... Rc5 {[%clk 0:00:04.6]}
50. Rd6 {[%clk 0:00:03.7]} 50... exf4 {[%clk 0:00:03.7]} 51. Nd4 {[%clk
0:00:03.8]} 51... Re5 {[%clk 0:00:03.7]} 52. Nxe6 {[%clk 0:00:02.9]} 52... Rxe6
{[%clk 0:00:04.6]} 53. Rxe6+ {[%clk 0:00:03.7]} 53... Kxe6 {[%clk 0:00:05.5]}
54. Kxf4 {[%clk 0:00:04.6]} 54... Kf6 {[%clk 0:00:06]} 55. e5+ {[%clk
0:00:05.5]} 55... Ke6 {[%clk 0:00:06.6]} 56. Ke4 {[%clk 0:00:06.4]} 56... Ke7
{[%clk 0:00:07.1]} 57. Kf5 {[%clk 0:00:07.3]} 57... Kf7 {[%clk 0:00:07.5]} 58.
e6+ {[%clk 0:00:08.2]} 58... Ke7 {[%clk 0:00:08]} 59. Ke5 {[%clk 0:00:09.1]}
59... Ke8 {[%clk 0:00:08.5]} 60. Kd5 {[%clk 0:00:09.7]} 60... Ke7 {[%clk
0:00:08.5]} 61. Ke5 {[%clk 0:00:10.3]} 61... Ke8 {[%clk 0:00:09.1]} 62. Kd6
{[%clk 0:00:10.9]} 62... Kd8 {[%clk 0:00:09.5]} 63. e7+ {[%clk 0:00:11.8]} 63...
Ke8 {[%clk 0:00:10]} 64. Ke6 {[%clk 0:00:12.7]} 1/2-1/2

[Event "*** Titled Tuesday Blitz"]
[Site "Chess.com"]
[Date "2020.04.14"]
[Round "2"]
[White "Evgeny81"]
[Black "Tonychess32"]
[Result "0-1"]
[WhiteElo "2709"]
[BlackElo "2557"]
[TimeControl "180+1"]
[EndTime "10:18:36 PDT"]
[Termination "Tonychess32 won on time"]

1. d4 {[%clk 0:03:00.9]} 1... Nf6 {[%clk 0:02:59.6]} 2. c4 {[%clk 0:03:00.6]}
2... b6 {[%clk 0:02:58.2]} 3. Nf3 {[%clk 0:02:58.7]} 3... Bb7 {[%clk 0:02:58.4]}
4. g3 {[%clk 0:02:59.1]} 4... g6 {[%clk 0:02:57.6]} 5. Bg2 {[%clk 0:02:59.2]}
5... Ne4 {[%clk 0:02:57.8]} 6. O-O {[%clk 0:02:57.9]} 6... Bg7 {[%clk
0:02:58.1]} 7. Qc2 {[%clk 0:02:31.9]} 7... f5 {[%clk 0:02:42.7]} 8. Ng5 {[%clk
0:02:27.7]} 8... Bxd4 {[%clk 0:02:21]} 9. Nxe4 {[%clk 0:02:26.2]} 9... fxe4
{[%clk 0:02:21.4]} 10. Bxe4 {[%clk 0:02:26.6]} 10... Nc6 {[%clk 0:02:20.9]} 11.
Bxg6+ {[%clk 0:02:23.3]} 11... hxg6 {[%clk 0:02:13.9]} 12. Qxg6+ {[%clk
0:02:22.6]} 12... Kf8 {[%clk 0:02:14.4]} 13. Bh6+ {[%clk 0:02:23]} 13... Rxh6
{[%clk 0:02:14.4]} 14. Qxh6+ {[%clk 0:02:23.6]} 14... Bg7 {[%clk 0:02:14.5]} 15.
Qf4+ {[%clk 0:02:21.6]} 15... Kg8 {[%clk 0:02:13.6]} 16. Nc3 {[%clk 0:02:21.5]}
16... e5 {[%clk 0:02:06]} 17. Qg4 {[%clk 0:02:11.9]} 17... Nd4 {[%clk
0:02:01.6]} 18. Nd5 {[%clk 0:02:02.9]} 18... c6 {[%clk 0:01:46.6]} 19. Nc3
{[%clk 0:01:54]} 19... Qf6 {[%clk 0:01:42]} 20. Qxd7 {[%clk 0:01:35.5]} 20...
Qf7 {[%clk 0:01:04.1]} 21. Qxf7+ {[%clk 0:01:27]} 21... Kxf7 {[%clk 0:01:05]}
22. Ne4 {[%clk 0:01:18.2]} 22... Nxe2+ {[%clk 0:00:57.2]} 23. Kg2 {[%clk
0:01:18.7]} 23... Ke7 {[%clk 0:00:55.7]} 24. Rfe1 {[%clk 0:01:13.9]} 24... Nd4
{[%clk 0:00:55.8]} 25. c5 {[%clk 0:01:12.9]} 25... Rf8 {[%clk 0:00:49.9]} 26.
Rad1 {[%clk 0:01:08.1]} 26... Bc8 {[%clk 0:00:40.7]} 27. Nd6 {[%clk 0:00:55.6]}
27... Be6 {[%clk 0:00:37.3]} 28. f4 {[%clk 0:00:38.4]} 28... Bd5+ {[%clk
0:00:37.1]} 29. Kf2 {[%clk 0:00:38.4]} 29... Kd7 {[%clk 0:00:29.5]} 30. b4
{[%clk 0:00:10.6]} 30... exf4 {[%clk 0:00:29.1]} 31. gxf4 {[%clk 0:00:08.1]}
31... Rxf4+ {[%clk 0:00:29.4]} 32. Kg3 {[%clk 0:00:08.6]} 32... Rf3+ {[%clk
0:00:29.7]} 33. Kg4 {[%clk 0:00:09]} 33... Rf2 {[%clk 0:00:25.3]} 34. Re8 {[%clk
0:00:05.4]} 34... Rg2+ {[%clk 0:00:24.9]} 35. Kf4 {[%clk 0:00:04.1]} 35... Bh6+
{[%clk 0:00:23.3]} 36. Ke5 {[%clk 0:00:03]} 36... Nf3+ {[%clk 0:00:20.3]} 37.
Kf6 {[%clk 0:00:02.9]} 37... Bg7+ {[%clk 0:00:14.3]} 38. Kf5 {[%clk 0:00:02.8]}
38... Nh4+ {[%clk 0:00:12.5]} 39. Kf4 {[%clk 0:00:02.8]} 39... Bh6+ {[%clk
0:00:11.9]} 40. Ke5 {[%clk 0:00:02.4]} 40... Re2+ {[%clk 0:00:08.7]} 41. Kf6
{[%clk 0:00:02.7]} 41... Rxe8 {[%clk 0:00:08]} 42. Nxe8 {[%clk 0:00:03.2]} 42...
Kxe8 {[%clk 0:00:08.9]} 43. cxb6 {[%clk 0:00:03.7]} 43... axb6 {[%clk
0:00:08.6]} 44. b5 {[%clk 0:00:04.2]} 44... Kd7 {[%clk 0:00:07.2]} 45. bxc6+
{[%clk 0:00:03.9]} 45... Kxc6 {[%clk 0:00:08.1]} 46. Re1 {[%clk 0:00:03.3]}
46... Nf3 {[%clk 0:00:07.5]} 47. Rf1 {[%clk 0:00:03.3]} 47... Nxh2 {[%clk
0:00:05.3]} 48. Re1 {[%clk 0:00:01.6]} 48... Ng4+ {[%clk 0:00:04.8]} 49. Kg6
{[%clk 0:00:02.3]} 49... Bd2 {[%clk 0:00:03.2]} 50. Re2 {[%clk 0:00:02.6]} 50...
Bb4 {[%clk 0:00:02.8]} 51. Rc2+ {[%clk 0:00:02.7]} 51... Bc5 {[%clk 0:00:02.8]}
52. Kg5 {[%clk 0:00:03.1]} 52... Ne3 {[%clk 0:00:03.5]} 53. Rc3 {[%clk
0:00:03.4]} 53... Nc4 {[%clk 0:00:03.6]} 54. Rd3 {[%clk 0:00:03.6]} 54... Nd6
{[%clk 0:00:04]} 55. Rd1 {[%clk 0:00:03.8]} 55... Ne4+ {[%clk 0:00:04.4]} 56.
Kf5 {[%clk 0:00:04.3]} 56... Nc3 {[%clk 0:00:05.3]} 57. Rd2 {[%clk 0:00:04.6]}
57... Be4+ {[%clk 0:00:04.5]} 58. Kf4 {[%clk 0:00:04.5]} 58... Bd5 {[%clk
0:00:04.5]} 59. Rc2 {[%clk 0:00:03.3]} 59... Nb5 {[%clk 0:00:04.7]} 60. a4
{[%clk 0:00:02.9]} 60... Nd4 {[%clk 0:00:04.8]} 0-1

[Event "*** Titled Tuesday Blitz"]
[Site "Chess.com"]
[Date "2020.04.14"]
[Round "2"]
[White "Volodar_Murzin"]
[Black "SanchezKelvin"]
[Result "0-1"]
[WhiteElo "2673"]
[BlackElo "2431"]
[TimeControl "180+1"]
[EndTime "10:18:37 PDT"]
[Termination "SanchezKelvin won by resignation"]

1. d4 {[%clk 0:03:00.9]} 1... Nf6 {[%clk 0:02:59.6]} 2. Nf3 {[%clk 0:03:00.3]}
2... g6 {[%clk 0:02:59.9]} 3. Bg5 {[%clk 0:03:00]} 3... Bg7 {[%clk 0:02:30.5]}
4. Nbd2 {[%clk 0:02:57.8]} 4... d5 {[%clk 0:02:28.9]} 5. e3 {[%clk 0:02:52.8]}
5... O-O {[%clk 0:02:07]} 6. Bd3 {[%clk 0:02:42.7]} 6... Bg4 {[%clk 0:02:02.8]}
7. h3 {[%clk 0:02:36.5]} 7... Bxf3 {[%clk 0:01:46]} 8. gxf3 {[%clk 0:02:21.2]}
8... c6 {[%clk 0:01:46.9]} 9. f4 {[%clk 0:02:19.2]} 9... Qb6 {[%clk 0:01:45.3]}
10. Rb1 {[%clk 0:02:14.6]} 10... Nbd7 {[%clk 0:01:41.8]} 11. c3 {[%clk
0:02:12.8]} 11... c5 {[%clk 0:01:34.1]} 12. O-O {[%clk 0:02:05.6]} 12... Qe6
{[%clk 0:01:25.4]} 13. Kh2 {[%clk 0:02:01.5]} 13... cxd4 {[%clk 0:01:18.8]} 14.
cxd4 {[%clk 0:01:59.6]} 14... Rac8 {[%clk 0:01:16.9]} 15. Qf3 {[%clk 0:01:48.9]}
15... Nb6 {[%clk 0:01:13.8]} 16. Rfc1 {[%clk 0:01:43.1]} 16... Rxc1 {[%clk
0:01:00.4]} 17. Rxc1 {[%clk 0:01:40.7]} 17... Rc8 {[%clk 0:01:00.8]} 18. Qd1
{[%clk 0:01:28.5]} 18... h6 {[%clk 0:00:57.4]} 19. Bh4 {[%clk 0:01:15]} 19...
Rxc1 {[%clk 0:00:42.3]} 20. Qxc1 {[%clk 0:01:13.1]} 20... Qc8 {[%clk 0:00:42]}
21. Qb1 {[%clk 0:01:05]} 21... e6 {[%clk 0:00:08.9]} 22. Nf3 {[%clk 0:00:43.6]}
22... Nc4 {[%clk 0:00:08.5]} 23. b3 {[%clk 0:00:35.9]} 23... Nd6 {[%clk
0:00:08.4]} 24. Ne5 {[%clk 0:00:26.7]} 24... Nf5 {[%clk 0:00:08.5]} 25. Bxf6
{[%clk 0:00:21.5]} 25... Bxf6 {[%clk 0:00:08.4]} 26. Qb2 {[%clk 0:00:15.9]}
26... Qc7 {[%clk 0:00:07.9]} 27. Qd2 {[%clk 0:00:14.9]} 27... Kg7 {[%clk
0:00:07.4]} 28. Kg1 {[%clk 0:00:12.8]} 28... Nh4 {[%clk 0:00:07.3]} 29. Kf1
{[%clk 0:00:12.7]} 29... Bxe5 {[%clk 0:00:06.6]} 30. fxe5 {[%clk 0:00:12.7]}
30... Qe7 {[%clk 0:00:06.8]} 31. Ke2 {[%clk 0:00:12.4]} 31... Qg5 {[%clk
0:00:06.6]} 32. Kd1 {[%clk 0:00:12.2]} 32... Qg1+ {[%clk 0:00:06.6]} 33. Kc2
{[%clk 0:00:12.4]} 33... Nf3 {[%clk 0:00:04.8]} 34. Qe2 {[%clk 0:00:12.7]} 34...
Ne1+ {[%clk 0:00:05]} 35. Kd2 {[%clk 0:00:13]} 35... Nxd3 {[%clk 0:00:04.4]} 36.
Kxd3 {[%clk 0:00:13.9]} 36... Qb1+ {[%clk 0:00:04.2]} 37. Kc3 {[%clk 0:00:13.6]}
37... Qc1+ {[%clk 0:00:04.1]} 38. Kd3 {[%clk 0:00:12.8]} 38... Qb1+ {[%clk
0:00:03.9]} 39. Kc3 {[%clk 0:00:11.7]} 39... Qc1+ {[%clk 0:00:04.2]} 40. Qc2
{[%clk 0:00:09.9]} 40... Qe1+ {[%clk 0:00:03.8]} 41. Kb2 {[%clk 0:00:09.3]}
41... g5 {[%clk 0:00:02.2]} 42. a4 {[%clk 0:00:07.4]} 42... Qg1 {[%clk
0:00:03.1]} 43. Ka3 {[%clk 0:00:07.3]} 43... h5 {[%clk 0:00:04]} 44. Qc7 {[%clk
0:00:06.9]} 44... g4 {[%clk 0:00:04.9]} 45. Qxb7 {[%clk 0:00:07]} 45... gxh3
{[%clk 0:00:04.9]} 46. Qe7 {[%clk 0:00:06.6]} 46... Qa1+ {[%clk 0:00:05.8]} 47.
Kb4 {[%clk 0:00:06]} 47... Qg1 {[%clk 0:00:06.6]} 48. Qf6+ {[%clk 0:00:04.9]}
48... Kg8 {[%clk 0:00:06.8]} 49. Qd8+ {[%clk 0:00:05.2]} 49... Kh7 {[%clk
0:00:06.4]} 50. Qf6 {[%clk 0:00:05.4]} 50... Qg6 {[%clk 0:00:06.4]} 51. Qh4
{[%clk 0:00:05.6]} 51... Qf5 {[%clk 0:00:06.6]} 52. Qf6 {[%clk 0:00:06.2]} 52...
Qxf6 {[%clk 0:00:06.7]} 53. exf6 {[%clk 0:00:06.3]} 53... h2 {[%clk 0:00:07.6]}
54. a5 {[%clk 0:00:06.7]} 54... h1=Q {[%clk 0:00:08.5]} 55. a6 {[%clk
0:00:07.6]} 55... Qc1 {[%clk 0:00:09.1]} 56. Kb5 {[%clk 0:00:08.5]} 56... Qc7
{[%clk 0:00:09.6]} 0-1

[Event "*** Titled Tuesday Blitz"]
[Site "Chess.com"]
[Date "2020.04.14"]
[Round "2"]
[White "Muracle"]
[Black "PavelChernomordik"]
[Result "1/2-1/2"]
[WhiteElo "2682"]
[BlackElo "2432"]
[TimeControl "180+1"]
[EndTime "10:18:38 PDT"]
[Termination "Game drawn - insufficient material"]

1. e4 {[%clk 0:03:00.9]} 1... g6 {[%clk 0:02:59.2]} 2. d4 {[%clk 0:03:00.3]}
2... Bg7 {[%clk 0:03:00.1]} 3. Nc3 {[%clk 0:03:00.4]} 3... d6 {[%clk 0:03:00.4]}
4. Be3 {[%clk 0:02:59.7]} 4... a6 {[%clk 0:03:00.3]} 5. f4 {[%clk 0:02:59.4]}
5... b5 {[%clk 0:02:58.9]} 6. Nf3 {[%clk 0:02:59.5]} 6... Bb7 {[%clk 0:02:58.2]}
7. e5 {[%clk 0:02:57.7]} 7... b4 {[%clk 0:02:55.8]} 8. Na4 {[%clk 0:02:50.1]}
8... Nh6 {[%clk 0:02:50.3]} 9. Bc4 {[%clk 0:02:48.2]} 9... O-O {[%clk
0:02:32.3]} 10. Qd2 {[%clk 0:02:38.1]} 10... c5 {[%clk 0:02:20.9]} 11. dxc5
{[%clk 0:02:21.5]} 11... Bxf3 {[%clk 0:02:14.2]} 12. gxf3 {[%clk 0:02:20.1]}
12... dxe5 {[%clk 0:02:10.9]} 13. fxe5 {[%clk 0:02:12.6]} 13... Nf5 {[%clk
0:02:04.8]} 14. f4 {[%clk 0:01:58.6]} 14... Nxe3 {[%clk 0:01:53.3]} 15. Qxe3
{[%clk 0:01:57.2]} 15... Nc6 {[%clk 0:01:52.8]} 16. Nb6 {[%clk 0:01:53]} 16...
Ra7 {[%clk 0:01:47.6]} 17. Bd5 {[%clk 0:01:51.2]} 17... Rc7 {[%clk 0:01:36.8]}
18. O-O-O {[%clk 0:01:48.6]} 18... Qe8 {[%clk 0:01:27.4]} 19. h4 {[%clk
0:01:39.6]} 19... e6 {[%clk 0:01:25]} 20. Be4 {[%clk 0:01:36.1]} 20... h5 {[%clk
0:01:15.4]} 21. Rd6 {[%clk 0:01:28.4]} 21... Ne7 {[%clk 0:01:13.8]} 22. Rhd1
{[%clk 0:01:24.2]} 22... Bh6 {[%clk 0:01:07.7]} 23. Nd7 {[%clk 0:01:18.3]} 23...
Rxd7 {[%clk 0:01:05.7]} 24. Rxd7 {[%clk 0:01:19.2]} 24... Nd5 {[%clk 0:01:04.6]}
25. R7xd5 {[%clk 0:01:11.9]} 25... exd5 {[%clk 0:01:00.9]} 26. Bxd5 {[%clk
0:01:12.1]} 26... Qe7 {[%clk 0:00:56]} 27. Qe4 {[%clk 0:01:08.7]} 27... Kg7
{[%clk 0:00:50.1]} 28. c6 {[%clk 0:00:52.1]} 28... Qxh4 {[%clk 0:00:46.3]} 29.
Rf1 {[%clk 0:00:51.8]} 29... g5 {[%clk 0:00:31]} 30. Qxb4 {[%clk 0:00:36]} 30...
Qh3 {[%clk 0:00:25.8]} 31. Rg1 {[%clk 0:00:24.8]} 31... Qe3+ {[%clk 0:00:23.4]}
32. Kd1 {[%clk 0:00:21.5]} 32... Qxg1+ {[%clk 0:00:24.3]} 33. Ke2 {[%clk
0:00:21.2]} 33... Qh2+ {[%clk 0:00:21.6]} 34. Kd3 {[%clk 0:00:18.3]} 34... gxf4
{[%clk 0:00:21.2]} 35. c7 {[%clk 0:00:17.7]} 35... Qh3+ {[%clk 0:00:20]} 36. Kc4
{[%clk 0:00:15.5]} 36... Rc8 {[%clk 0:00:20.2]} 37. Qd6 {[%clk 0:00:14.8]} 37...
Qf5 {[%clk 0:00:18.7]} 38. Bb7 {[%clk 0:00:13.4]} 38... Rxc7+ {[%clk 0:00:15.5]}
39. Qxc7 {[%clk 0:00:08.4]} 39... f3 {[%clk 0:00:16.4]} 40. Bxf3 {[%clk
0:00:02.6]} 40... Qxf3 {[%clk 0:00:15.5]} 41. Kc5 {[%clk 0:00:02.5]} 41... Qe3+
{[%clk 0:00:14.9]} 42. Kd6 {[%clk 0:00:02.8]} 42... Bf4 {[%clk 0:00:14.4]} 43.
Qe7 {[%clk 0:00:02.5]} 43... Qxe5+ {[%clk 0:00:14.1]} 44. Qxe5+ {[%clk
0:00:02.7]} 44... Bxe5+ {[%clk 0:00:13.7]} 45. Kxe5 {[%clk 0:00:03.6]} 45... h4
{[%clk 0:00:13.1]} 46. Kf4 {[%clk 0:00:04]} 46... Kf6 {[%clk 0:00:13.4]} 47. Kg4
{[%clk 0:00:04.5]} 47... Ke5 {[%clk 0:00:13.7]} 48. Kxh4 {[%clk 0:00:05.1]}
48... Ke4 {[%clk 0:00:14.1]} 49. c4 {[%clk 0:00:04.9]} 49... Kd4 {[%clk
0:00:13.6]} 50. b3 {[%clk 0:00:05.1]} 50... Ke4 {[%clk 0:00:11.6]} 51. Kg5
{[%clk 0:00:04.3]} 51... f5 {[%clk 0:00:11.7]} 52. c5 {[%clk 0:00:04.1]} 52...
Kd5 {[%clk 0:00:10]} 53. Kxf5 {[%clk 0:00:03.8]} 53... Kxc5 {[%clk 0:00:10.9]}
54. Ke4 {[%clk 0:00:04.3]} 54... Kb4 {[%clk 0:00:11.5]} 55. Kd4 {[%clk
0:00:04.3]} 55... a5 {[%clk 0:00:12.4]} 56. Kd5 {[%clk 0:00:03.3]} 56... a4
{[%clk 0:00:12.7]} 57. bxa4 {[%clk 0:00:03.5]} 57... Kxa4 {[%clk 0:00:12.7]} 58.
Kc4 {[%clk 0:00:04.4]} 58... Ka3 {[%clk 0:00:13.3]} 59. Kc3 {[%clk 0:00:05.3]}
59... Kxa2 {[%clk 0:00:13.7]} 1/2-1/2

[Event "*** Titled Tuesday Blitz"]
[Site "Chess.com"]
[Date "2020.04.14"]
[Round "2"]
[White "JulAnt"]
[Black "Jagerrmeisterr"]
[Result "1-0"]
[WhiteElo "2452"]
[BlackElo "2682"]
[TimeControl "180+1"]
[EndTime "10:18:39 PDT"]
[Termination "JulAnt won by resignation"]

1. e4 {[%clk 0:03:00.9]} 1... c6 {[%clk 0:03:00]} 2. d4 {[%clk 0:03:00.6]} 2...
d5 {[%clk 0:03:00.9]} 3. Nc3 {[%clk 0:03:00.8]} 3... dxe4 {[%clk 0:03:00.8]} 4.
Nxe4 {[%clk 0:03:01.1]} 4... Nf6 {[%clk 0:03:01.7]} 5. Nxf6+ {[%clk 0:03:01.3]}
5... gxf6 {[%clk 0:03:02.6]} 6. c3 {[%clk 0:02:58.6]} 6... Bf5 {[%clk
0:03:02.5]} 7. Bf4 {[%clk 0:02:53.5]} 7... e6 {[%clk 0:03:01.7]} 8. Bg3 {[%clk
0:02:53.3]} 8... Bd6 {[%clk 0:02:58.9]} 9. Bd3 {[%clk 0:02:53]} 9... Bg6 {[%clk
0:02:58.2]} 10. Ne2 {[%clk 0:02:51.4]} 10... Qc7 {[%clk 0:02:57.9]} 11. Qd2
{[%clk 0:02:49.6]} 11... Nd7 {[%clk 0:02:57.8]} 12. O-O {[%clk 0:02:32.5]} 12...
Bxd3 {[%clk 0:02:48.6]} 13. Qxd3 {[%clk 0:02:32.4]} 13... h5 {[%clk 0:02:49.1]}
14. c4 {[%clk 0:02:29]} 14... h4 {[%clk 0:02:47.7]} 15. Bxd6 {[%clk 0:02:29.1]}
15... Qxd6 {[%clk 0:02:48.6]} 16. Qf3 {[%clk 0:02:17.7]} 16... f5 {[%clk
0:02:32.8]} 17. d5 {[%clk 0:02:10]} 17... Ne5 {[%clk 0:02:17.7]} 18. Qf4 {[%clk
0:02:01.7]} 18... h3 {[%clk 0:02:17.6]} 19. dxe6 {[%clk 0:01:52.4]} 19... O-O-O
{[%clk 0:01:21.7]} 20. exf7 {[%clk 0:01:42.9]} 20... hxg2 {[%clk 0:01:20.4]} 21.
Rfd1 {[%clk 0:01:36.8]} 21... Nf3+ {[%clk 0:00:56.5]} 22. Kxg2 {[%clk
0:01:30.4]} 22... Qg6+ {[%clk 0:00:32.8]} 23. Kxf3 {[%clk 0:01:13.7]} 23... Qxf7
{[%clk 0:00:17.4]} 24. Ng3 {[%clk 0:01:07.3]} 24... Rdf8 {[%clk 0:00:14.3]} 25.
Kg2 {[%clk 0:01:04.3]} 25... Qh7 {[%clk 0:00:14.4]} 26. Rh1 {[%clk 0:00:59.6]}
26... Qh3+ {[%clk 0:00:14.3]} 27. Kg1 {[%clk 0:00:58.7]} 27... Rhg8 {[%clk
0:00:09.7]} 28. Rd1 {[%clk 0:00:42]} 28... Re8 {[%clk 0:00:08.9]} 29. Qd6 {[%clk
0:00:31.5]} 29... f4 {[%clk 0:00:03.2]} 30. Qxf4 {[%clk 0:00:28.9]} 30... Rgf8
{[%clk 0:00:03.7]} 31. Qd2 {[%clk 0:00:24.2]} 31... Qg4 {[%clk 0:00:03.9]} 32.
Re1 {[%clk 0:00:19]} 32... Rxe1+ {[%clk 0:00:03.5]} 33. Qxe1 {[%clk 0:00:19.9]}
33... Rd8 {[%clk 0:00:03.7]} 34. Kg2 {[%clk 0:00:20.2]} 34... Qxc4 {[%clk
0:00:03.5]} 35. Qe3 {[%clk 0:00:18.7]} 35... Qxa2 {[%clk 0:00:03.6]} 36. h4
{[%clk 0:00:14.4]} 36... Qxb2 {[%clk 0:00:03.7]} 37. h5 {[%clk 0:00:14.5]} 37...
a5 {[%clk 0:00:04.3]} 38. h6 {[%clk 0:00:14.8]} 38... a4 {[%clk 0:00:04.9]} 39.
h7 {[%clk 0:00:13.9]} 39... a3 {[%clk 0:00:05.5]} 40. Qe6+ {[%clk 0:00:11.4]}
40... Kb8 {[%clk 0:00:05.2]} 41. Qe7 {[%clk 0:00:11.8]} 41... Rc8 {[%clk
0:00:05.2]} 42. Qd6+ {[%clk 0:00:08.6]} 42... Ka8 {[%clk 0:00:05.6]} 43. Qc5
{[%clk 0:00:08.5]} 43... a2 {[%clk 0:00:05.4]} 44. Qa5+ {[%clk 0:00:08.7]} 44...
Kb8 {[%clk 0:00:05.8]} 45. h8=Q {[%clk 0:00:08.3]} 45... Rxh8 {[%clk 0:00:05.4]}
46. Rxh8+ {[%clk 0:00:08.4]} 46... Qxh8 {[%clk 0:00:06.1]} 47. Qxa2 {[%clk
0:00:08.9]} 47... Qe5 {[%clk 0:00:06.3]} 48. Qc4 {[%clk 0:00:08.5]} 48... b5
{[%clk 0:00:06.4]} 49. Qe4 {[%clk 0:00:08.5]} 49... Qc5 {[%clk 0:00:06.2]} 50.
Qe8+ {[%clk 0:00:08]} 50... Kb7 {[%clk 0:00:06.4]} 51. f4 {[%clk 0:00:08]} 51...
b4 {[%clk 0:00:06.3]} 52. Qe2 {[%clk 0:00:06.4]} 52... Qd4 {[%clk 0:00:04.4]}
53. Ne4 {[%clk 0:00:06.3]} 53... b3 {[%clk 0:00:04.5]} 54. Kf3 {[%clk
0:00:03.7]} 54... b2 {[%clk 0:00:04.8]} 55. Qc2 {[%clk 0:00:03.7]} 55... Qb4
{[%clk 0:00:05.1]} 56. Nc3 {[%clk 0:00:03.1]} 56... c5 {[%clk 0:00:03.9]} 57.
Kg4 {[%clk 0:00:03.1]} 57... Kc7 {[%clk 0:00:03.8]} 58. Kg5 {[%clk 0:00:03.6]}
58... Kd6 {[%clk 0:00:04]} 59. f5 {[%clk 0:00:04.1]} 59... Qd4 {[%clk
0:00:04.2]} 60. Nb5+ {[%clk 0:00:03.5]} 60... Ke5 {[%clk 0:00:03.9]} 61. Nxd4
{[%clk 0:00:04.4]} 61... cxd4 {[%clk 0:00:04.4]} 62. Qxb2 {[%clk 0:00:05.3]}
62... Ke4 {[%clk 0:00:04.9]} 63. Qxd4+ {[%clk 0:00:05.6]} 63... Kxd4 {[%clk
0:00:05.1]} 64. f6 {[%clk 0:00:06.5]} 64... Ke5 {[%clk 0:00:06]} 65. f7 {[%clk
0:00:07.3]} 1-0